Cogmind - Beta 13 *** ADVENTURER MODE // 2024.04.10 @ 19:40:09 Player: Teromax34 Result: Destroyed by D-53 Grenadier with Mini Grenade Launcher Performance ------------- Evolutions (0) 0 Regions Visited (4) 800 Robots Destroyed (24) 120 Value Destroyed (264) 264 Prototype IDs (0) 0 Alien Tech Used (0) 0 Bonus (0) 0 TOTAL SCORE: 1184 Bonus ------- None Cogmind --------- Core Integrity 0/250 Matter 290/300 Energy 100/100 System Corruption 0% Temperature Cool (0) Movement Core (200) Ox3 Location -9/Mines Parts ------- > --- POWER (1) -------- (None) > --- PROPULSION (2) --- (None) > --- UTILITY (2) ------ Medium Storage Unit > --- WEAPON (2) ------- Light Assault Rifle > --- INVENTORY (10) --- Light Ion Engine Plasma Flamer Peak State ------------ > --- POWER ------------ Light Ion Engine > --- PROPULSION ------- Light Treads > --- UTILITY ---------- Medium Storage Unit > --- WEAPON ----------- Plasma Flamer Makeshift Sword > --- INVENTORY -------- Light Assault Rifle Light Assault Rifle [Rating: 12] Favorites ----------- Power Light Ion Engine Engine Light Ion Engine Propulsion Light Treads Treads Light Treads Flight Unit Flight Unit Utility Medium Storage Unit Storage Medium Storage Unit Weapon Light Assault Rifle Energy Gun Small Laser Ballistic Gun Light Assault Rifle Special Weapon Plasma Flamer Slashing Weapon Makeshift Sword Build | -11 -10 -10 -10 -9 ------- Run | Yrd Mat Min Exi Min Slots Evolved . | . . . . . Power . | . . . . . Propulsion . | . . . . . Utility . | . . . . . Weapon . | . . . . . Parts Attached 23 | 6 . 8 4 5 Power 4 | 1 . 2 1 . Engine 4 | 1 . 2 1 . Core . | . . . . . Reactor . | . . . . . Propulsion 5 | 2 . 2 . 1 Treads 4 | 2 . 1 . 1 Leg . | . . . . . Wheel . | . . . . . Hover . | . . . . . Flight 1 | . . 1 . . Utility 3 | 1 . 1 1 . Device . | . . . . . Storage 3 | 1 . 1 1 . Processor . | . . . . . Hackware . | . . . . . Protection . | . . . . . Artifact . | . . . . . Weapon 11 | 2 . 3 2 4 Energy Gun 2 | 1 . . 1 . Energy Cannon . | . . . . . Ballistic Gun 6 | 1 . 2 . 3 Ballistic Cannon . | . . . . . Launcher . | . . . . . Special Weapon 1 | . . 1 . . Impact Weapon . | . . . . . Slashing Weapon 2 | . . . 1 1 Piercing Weapon . | . . . . . Special Melee Weapon . | . . . . . Unidentified Prototypes . | . . . . . Parts Lost 9 | . . 3 . 6 Power 2 | . . 1 . 1 Propulsion 3 | . . 1 . 2 Utility . | . . . . . Weapon 4 | . . 1 . 3 Highest Loss Streak 5 | . . 3 . 5 To Critical Strikes . | . . . . . Average Slot Usage (%) 74 | . 85 75 71 73 Engine 14 | . 14 14 14 14 Treads 17 | . 28 18 14 17 Storage 14 | . 14 14 14 14 Energy Gun 5 | . 14 4 3 13 Ballistic Gun 9 | . 14 15 5 1 Special Weapon 7 | . . 7 10 . Slashing Weapon 5 | . . . 8 12 Naked Turns . | . . . . . Heaviest Build 20 | 10 10 17 20 19 Greatest Support 40 | 40 40 40 20 40 Greatest Overweight (x) 6 | 3 . . . 6 Average Overweight (x) . | . . . . . Largest Inventory Capacity 10 | 8 8 10 10 10 Average Capacity 9 | 7 8 9 10 10 Most Carried 4 | 2 2 4 4 4 Average Carried 2 | 1 2 1 2 3 Final Capacity 10 | 8 8 10 10 10 Final Carried 4 | 2 2 1 4 2 Class Distribution -------------------- 100% | Mutant Dominant Class ---------------- Mutant | -10/Materials Mutant | -10/Mines Mutant | -10/Exiles Mutant | -9/Mines Resources | -11 -10 -10 -10 -9 ----------- Run | Yrd Mat Min Exi Min Matter Collected 452 | 197 74 113 . 68 Remotely . | . . . . . Salvage Created 413 | . 97 279 . 37 Parts 33 | . 6 27 . . Haulers Intercepted . | . . . . . Recyclers Shooed . | . . . . . Parts Field Recycled . | . . . . . Retrieved Matter . | . . . . . Parts Self-Destructed . | . . . . . Prevented . | . . . . . Kills | -11 -10 -10 -10 -9 ------- Run | Yrd Mat Min Exi Min Combat Hostiles Destroyed 28 | . 4 21 . 3 Melee 1 | . . . . 1 Guns 25 | . 4 19 . 2 Cannons 1 | . . 1 . . Classes Destroyed 3 | . 2 . . 1 Swarmer 24 | . 3 21 . . Grunt 1 | . 1 . . . Assembled 3 | . . . . 3 Best Kill Streak 6 | . 3 6 . 2 Combat Bots Only 6 | . 3 6 . 2 Max Kills in Single Turn 2 | . 1 2 . 1 Gunslinging 1 | . . 1 . . Exploded . | . . . . . Melee 1 | . . . . 1 Uniques/NPCs Destroyed . | . . . . . Combat | -11 -10 -10 -10 -9 -------- Run | Yrd Mat Min Exi Min Hostile Shots Fired 178 | . 20 112 . 46 Missed 43 | . 8 25 . 10 Damage Taken 1249 | . 78 530 . 641 Core 275 | . . 99 . 176 Absorbed by Shields . | . . . . . Ignored by Resistances 374 | . 25 174 . 175 Core Remaining (%) 100 | 100 . . . . Volleys Fired 76 | . 11 47 . 18 Largest 2 | . 2 2 . 2 Hottest 120 | . 60 120 . 70 Shots Fired 132 | . 22 89 . 21 Gun 120 | . 22 77 . 21 Cannon . | . . . . . Launcher . | . . . . . Special 12 | . . 12 . . Kinetic 62 | . 11 48 . 3 Thermal 70 | . 11 41 . 18 Explosive . | . . . . . Electromagnetic . | . . . . . Robot Hit Streak 18 | . 6 18 . 3 Robot Miss Streak 4 | . 2 4 . 4 Penetration Max . | . . . . . Secondary Targets 5 | . . 5 . . Max Gunslinging Chain 1 | . . 1 . . Shots Hit Robots 88 | . 14 61 . 13 Core Hits 35 | . 8 24 . 3 Critical Kills . | . . . . . Critical Parts Destroyed 1 | . . 1 . . Critical Strikes 8 | . . 4 . 4 Burn 7 | . . 3 . 4 Destroy 1 | . . 1 . . Melee Attacks 2 | . . . . 2 Impact . | . . . . . Slashing 2 | . . . . 2 Piercing . | . . . . . Sneak Attacks . | . . . . . Combat Hostiles . | . . . . . Follow-up Attacks . | . . . . . Damage Inflicted 1040 | . 148 632 . 260 Guns 818 | . 148 496 . 174 Cannons . | . . . . . Explosions . | . . . . . Melee 86 | . . . . 86 Ramming 3 | . . 3 . . Kinetic 337 | . 69 262 . 6 Thermal 614 | . 79 367 . 168 Explosive . | . . . . . Electromagnetic . | . . . . . Impact . | . . . . . Slashing 86 | . . . . 86 Piercing . | . . . . . Highest Corruption . | . . . . . Average Corruption . | . . . . . Corruption Purged . | . . . . . Corruption Blocked . | . . . . . Overload Shots . | . . . . . Overflow Damage 35 | . . . . 35 Projectiles . | . . . . . Explosions . | . . . . . Melee 35 | . . . . 35 Knockbacks . | . . . . . Impact . | . . . . . Kinetic . | . . . . . Secondary . | . . . . . Self-Inflicted Damage . | . . . . . Shots . | . . . . . Rammed 1 | . . 1 . . Targets Rammed 1 | . . 1 . . Kicked . | . . . . . Crushed . | . . . . . Highest Temperature 340 | . 52 340 . 161 Average Temperature 69 | . 22 73 . 85 Received Heat Transfer 12 | . 12 . . . Siege Activations . | . . . . . Robots Corrupted . | . . . . . Combat Hostiles . | . . . . . Parts Fried . | . . . . . Impact Corruptions . | . . . . . Robots Melted 1 | . . 1 . . Combat Hostiles 1 | . . 1 . . Parts Melted 1 | . . 1 . . Heat Transferred 2646 | . 175 1805 . 666 Parts Sabotaged . | . . . . . Parts Stolen . | . . . . . Parts Stripped . | . . . . . Power Chain Reactions . | . . . . . Alert | -11 -10 -10 -10 -9 ------- Run | Yrd Mat Min Exi Min Peak Influence 349 | . 90 349 . . Initial 29 | . . 29 . . Average 124 | . 39 188 . . Maximum Alert Level 1 | . . 1 . . Low Security (%) 79 | 100 100 67 . 100 Level 1 20 | . . 32 . . Level 2 . | . . . . . Level 3 . | . . . . . Level 4 . | . . . . . Level 5 . | . . . . . High Security . | . . . . . Max Security . | . . . . . Squads Dispatched . | . . . . . Investigation . | . . . . . Extermination . | . . . . . Reinforcement . | . . . . . Assault . | . . . . . Garrison . | . . . . . Intercept . | . . . . . Searches Triggered . | . . . . . Construction Impeded . | . . . . . Haulers Reinforced . | . . . . . Active Scanning Responses . | . . . . . Cargo Convoy Interrupts . | . . . . . Stealth | -11 -10 -10 -10 -9 --------- Run | Yrd Mat Min Exi Min Distress Signals . | . . . . . Communications Jammed . | . . . . . Distress Signals . | . . . . . Times Spotted 32 | . 4 23 . 5 Peak Tracking Total 6 | . 3 6 . 4 Tactical Retreats 1 | . . 1 . . Traps | -11 -10 -10 -10 -9 ------- Run | Yrd Mat Min Exi Min Traps Triggered . | . . . . . Indirectly . | . . . . . Trap Hack Attempts . | . . . . . Triggered . | . . . . . Disarmed . | . . . . . Reprogrammed . | . . . . . Reused . | . . . . . Traps Extracted . | . . . . . Installed . | . . . . . Triggered . | . . . . . Machines | -11 -10 -10 -10 -9 ---------- Run | Yrd Mat Min Exi Min Machines Disabled . | . . . . . Max in Single Turn . | . . . . . Machines Repaired . | . . . . . Machines Dismantled . | . . . . . Machines Sabotaged . | . . . . . Overloaded Fab Kills . | . . . . . Hacking | -11 -10 -10 -10 -9 --------- Run | Yrd Mat Min Exi Min Machines Accessed 8 | . 4 . 4 . Terminals 4 | . 4 . . . Fabricators . | . . . . . Repair Stations . | . . . . . Recycling Units . | . . . . . Scanalyzers . | . . . . . Garrison Access . | . . . . . Total Hacks 53 | . 4 . 49 . Successful 50 | . 1 . 49 . Failed 3 | . 3 . . . Catastrophic 2 | . 2 . . . Database Lockouts . | . . . . . Manual 7 | . 5 . 2 . Terminals 4 | . 4 . . . Fabricators . | . . . . . Repair Stations . | . . . . . Recycling Units . | . . . . . Scanalyzers . | . . . . . Garrison Access . | . . . . . Terminal Hacks 50 | . 1 . 49 . Record 50 | . 1 . 49 . Fabricator Hacks . | . . . . . Repair Station Hacks . | . . . . . Recycling Unit Hacks . | . . . . . Scanalyzer . | . . . . . Garrison Access Hacks . | . . . . . Unauthorized Hacks . | . . . . . Terminals . | . . . . . Fabricators . | . . . . . Repair Stations . | . . . . . Recycling Units . | . . . . . Scanalyzers . | . . . . . Garrison Access . | . . . . . Data Cores Recovered . | . . . . . Used . | . . . . . Hacking Detections 4 | . 4 . . . Full Trace Events . | . . . . . Feedback Events . | . . . . . Feedback Blocked . | . . . . . Robot Schematics Acquired . | . . . . . Robots Built . | . . . . . Authchips . | . . . . . Time . | . . . . . Total Robot Build Rating . | . . . . . Part Schematics Acquired . | . . . . . Parts Built . | . . . . . Authchips . | . . . . . Time . | . . . . . Total Part Build Rating . | . . . . . Parts Repaired . | . . . . . Time . | . . . . . Parts Recycled . | . . . . . Recycled Matter . | . . . . . Retrieved Matter . | . . . . . Retrieved Components . | . . . . . Parts Scanalyzed . | . . . . . Part Schematics Acquired . | . . . . . Parts Damaged . | . . . . . Bothacking | -11 -10 -10 -10 -9 ------------ Run | Yrd Mat Min Exi Min Used RIF Installer . | . . . . . Robots Hacked . | . . . . . Non-combat . | . . . . . Combat . | . . . . . Robot Hacks Applied . | . . . . . Relay Couplers Released . | . . . . . Fabnet Peak Effective % . | . . . . . Robots Rewired . | . . . . . Allies Hacked . | . . . . . Hacks Repelled . | . . . . . Allies | -11 -10 -10 -10 -9 -------- Run | Yrd Mat Min Exi Min Total Allies . | . . . . . Largest Group . | . . . . . Highest-Rated Group . | . . . . . Highest-Rated Ally . | . . . . . Total Orders . | . . . . . Ally Attacks . | . . . . . Total Damage . | . . . . . Kills . | . . . . . Allies Corrupted . | . . . . . Allies Melted . | . . . . . Intel | -11 -10 -10 -10 -9 ------- Run | Yrd Mat Min Exi Min Robot Analysis Total . | . . . . . Derelict Logs Recovered . | . . . . . Drone Launches . | . . . . . Drone Recoveries . | . . . . . Exploration | -11 -10 -10 -10 -9 ------------- Run | Yrd Mat Min Exi Min Turns Passed 2863 | 73 335 895 1405 155 Spaces Moved 1628 | 43 191 458 872 64 Core 20 | 18 . . . 2 Treads 1608 | 25 191 458 872 62 Legs . | . . . . . Wheels . | . . . . . Hover . | . . . . . Flight . | . . . . . Fastest Speed 50 | 50 160 160 160 160 Average Speed 159 | 147 160 160 160 165 Slowest Speed 350 | 200 160 160 160 350 Overloaded Moves . | . . . . . Propulsion Burnouts . | . . . . . Robots Hopped . | . . . . . Cave-ins Triggered . | . . . . . Exploration Rate (%) 43 | 4 31 69 92 23 Regions Visited 4 Branch Regions 3 Pre-discovered Areas 2 | . . 1 1 . Known Exits Taken . | . . . . . Unknown Exits Taken 4 | 1 1 1 1 . Scrap Searched 1 | . . . . 1 Spaces Dug . | . . . . . Terrain Destroyed . | . . . . . Melee . | . . . . . Projectile . | . . . . . AOE . | . . . . . Terrain Rammed . | . . . . . Walls Destroyed . | . . . . . Machines Disabled . | . . . . . Actions | -11 -10 -10 -10 -9 --------- Run | Yrd Mat Min Exi Min Total 1754 | 50 201 534 880 89 Wait 11 | . . 11 . . Move 1624 | 42 190 457 871 64 Hop . | . . . . . Pick Up 11 | 2 . 5 4 . Fast Attach 7 | 6 . . . 1 Attach 5 | . . 3 . 2 Detach 1 | . . 1 . . Swap 11 | . . 5 4 2 Drop 5 | . . 4 1 . Fire 76 | . 11 47 . 18 Melee 2 | . . . . 2 Ram . | . . . . . Kick . | . . . . . Crush 1 | . . 1 . . Escape Stasis . | . . . . . Rewire . | . . . . . Trap . | . . . . . Miscellaneous . | . . . . . Route ------- -11/Scrapyard -10/Materials -10/Mines -10/Exiles (discovered 2 exits: [*Min x2]) -9/Mines History --------- Turn | Location | Event 35 | -11/Scrapyard | Discovered new exit (range 15) 74 | -11/Scrapyard | Entered Materials 303 | -10/Materials | Build established: Mutant 334 | -10/Materials | Discovered new exit (range 13) 409 | -10/Materials | Entered Mines 428 | -10/Mines | Met a Derelict bent on vengeance 742 | -10/Mines | Lost 3 parts (1p1n1w) 787 | -10/Mines | A weapon hastily lodged in a ceiling crevice suddenly fell to the ground 1255 | -10/Mines | Learned location of Storage (-7) 1292 | -10/Mines | Deemed a non-threat by the Exiles lab entrance 1294 | -10/Mines | Discovered new exit (range 5) 1304 | -10/Mines | Entered Exiles 1304 | -10/Exiles | Found Exiles lab destroyed 1380 | -10/Exiles | Discovered new exit (range 14) 1846 | -10/Exiles | Learned location of Zion (-7) 2124 | -10/Exiles | Discovered new exit (range 12) 2709 | -10/Exiles | Entered Mines 2738 | -9/Mines | Assembled infested the area 2770 | -9/Mines | Core integrity fell below 50% 2863 | -9/Mines | Core integrity fell below 20% 2864 | -9/Mines | Destroyed by D-53 Grenadier with Mini Grenade Launcher Last Messages --------------- R-06 Scavenger collects Wheel. U-05 Engineer lays Concrete. U-05 Engineer builds a Wall. U-05 Engineer lays Concrete. U-05 Engineer builds a Wall. U-05 Engineer lays Concrete. U-05 Engineer destroyed. Lgt. Treads destroyed. Mak. Sword destroyed. The unstable cave ceiling collapses. Mak. Laser destroyed. U-05 Engineer builds a Wall. Lgt. Assault Rifle destroyed. R-06 Scavenger destroyed. U-05 Engineer builds a Wall. A derelict emerges from the shadows. Ion Engine destroyed. 77-OJK(g): "Some of my friends down here think you need a mining laser when you travel the depths." Map ----- +----------------------------------------------------+ | ??????????????????# ! ### #### ####### #?? | | ??????????????????# !????????# #??# #????????????? | | ?????????????????????????????# #??# ????????????? | | ?????????????????????????????# ##?####???????????? | | ????????????????????????????## ##???????????????? | | ???????????????????????????## #???????????????? | | ??????????????????????????## % #???????????????? | | ??????????????????????????# #???????????????? | | ???????????????# ######### ##???????????????? | | ???????????????# ##????????????????? | | ???????????????# ##?????????????????? | | ???????????????######### ### ##??????????????????? | | ???????????????????????# ### #???????????????????? | | ??????????????????????## #???????????????????? | | ??????????????????????# #####?####??????????? | | ??????????????????????# # ## ##?????????? | | ??????????????????????# # ###???????? | | ??????????????????????## ??????? | | ???????????????????????## < ##?????????? | | ????????????????????????## ####??????????? | | ??????????????????????#### ##?????????????? | | ?????????????????????## ##??????????????? | | ??????????? ### ??# !% # ##???????????????? | | ?????????? # #u#????????????????? | | ?????????? g #????????????????? | | ?????????? d @ #????????????????? | | ?????????? d #????????????????? | | ?????????? #% #????????????????? | | ??????????? ???# ##????????????????? | | ???????????##???????# # ###?????????????????? | | ??????????????????? ########???????????????????? | | ?????????????????? ##????????????????????????????? | | ????????????????? ???????????????????????????????? | | ????????????????#????????????????????????????????? | | ?????????????????????????????????????????????????? | | ?????????????????????????????????????????????????? | | ?????????????????????????????????????????????????? | | ?????????????????????????????????????????????????? | | ?????????????????????????????????????????????????? | | ?????????????????????????????????????????????????? | | ?????????????????????????????????????????????????? | | ?????????????????????????????????????????????????? | | ?????????????????????????????????????????????????? | | ?????????????????????????????????????????????????? | | ?????????????????????????????????????????????????? | | ?????????????????????????????????????????????????? | | ?????????????????????????????????????????????????? | | ?????????????????????????????????????????????????? | | ?????????????????????????????????????????????????? | | ?????????????????????????????????????????????????? | +----------------------------------------------------+ Best States ------------- Heat Dissipation 25 Energy Generation 10 Energy Capacity 250 Matter Stores 300 Matter Capacity 300 Sight Range 16 Terrain Scan Density 10 Resistance: KI 20 Resistance: TH 20 Resistance: EX 20 Resistance: EM 20 Resistance: I 20 Resistance: S 20 Resistance: P 20 Evasion (%) 40 Recoil Reduction 2 Offensive Hacking 10 Item Schematics ----------------- None Robot Schematics ------------------ None Fabricated ------------ Nothing Alien Tech Used ----------------- None Achievements -------------- None Challenges ------------ None Game ------ Seed NeutrinoFieldWarhead Manual? 0 Play Time 00:36:26 Cumulative 3.9 hours Start 2024.04.10 @ 18:33:19 End 2024.04.10 @ 19:40:09 Sessions 1 Manual Loads 0 Difficulty Adventurer Special Mode None Game No. 10 Rogue 0 Adventurer 10 Explorer 0 Win Type - Total 0 Types 0/0/0/0/0/0/0/0/0 Lore% 13 Gallery% 9 Achievement% 10 Wizard Run 0 Options --------- Layout 1 ASCII 0 Keyboard 0 Movement Arrows Keybinds 0 Fullscreen 1 Font 20/SmallcapsGlow Map View 50x35 Zoom Use 0% Tactical HUD 0 Map Filters NONE Filters NONE Steam 1 RUN: e7f78ed1-d4ff-4802-ab60-d8592590bbb8